[Event "Titled Tuesday Blitz November 08 Late 2022"]
[White "Romero Ruscalleda, Josep"]
[Black "Bilan, Danila"]
[WhiteFideId "2231859"]
[BlackFideId "24161918"]
[WhiteElo "2183"]
[BlackElo "2173"]
[Result "1-0"]
[Round "10"]
[TimeControl "180+1"]
[Date "2022.11.09"]
[WhiteClock "0:00:31"]
[BlackClock "0:00:03"]

1. e4 {[%clk 0:03:00]}  c6 {[%clk 0:02:59]} 2. Nc3 {[%clk 0:03:00]}  d5 {[%clk 0:02:59]} 3. Nf3 {[%clk 0:03:01]}  Bg4 {[%clk 0:02:59]} 4. h3 {[%clk 0:03:00]}  Bxf3 {[%clk 0:02:58]} 5. Qxf3 {[%clk 0:03:01]}  e6 {[%clk 0:02:59]} 6. d4 {[%clk 0:03:01]}  dxe4 {[%clk 0:02:58]} 7. Qxe4 {[%clk 0:03:00]}  Nf6 {[%clk 0:02:59]} 8. Qd3 {[%clk 0:03:01]}  Bd6 {[%clk 0:02:56]} 9. g3 {[%clk 0:03:01]}  Nbd7 {[%clk 0:02:55]} 10. Bg2 {[%clk 0:03:01]}  Qc7 {[%clk 0:02:54]} 11. O-O {[%clk 0:03:00]}  O-O {[%clk 0:02:51]} 12. a4 {[%clk 0:02:59]}  a5 {[%clk 0:02:47]} 13. Re1 {[%clk 0:02:53]}  Rad8 {[%clk 0:02:45]} 14. Qc4 {[%clk 0:02:48]}  Rfe8 {[%clk 0:02:40]} 15. Bg5 {[%clk 0:02:46]}  h6 {[%clk 0:02:39]} 16. Be3 {[%clk 0:02:43]}  Nd5 {[%clk 0:02:23]} 17. Nxd5 {[%clk 0:02:32]}  exd5 {[%clk 0:02:24]} 18. Qd3 {[%clk 0:02:32]}  Re7 {[%clk 0:02:17]} 19. Re2 {[%clk 0:02:28]}  Rde8 {[%clk 0:02:17]} 20. Rae1 {[%clk 0:02:28]}  Nf6 {[%clk 0:02:05]} 21. Bd2 {[%clk 0:02:22]}  Bb4 {[%clk 0:01:47]} 22. c3 {[%clk 0:02:18]}  Bd6 {[%clk 0:01:45]} 23. Kf1 {[%clk 0:02:13]}  Qd7 {[%clk 0:01:37]} 24. Rxe7 {[%clk 0:02:11]}  Rxe7 {[%clk 0:01:36]} 25. Rxe7 {[%clk 0:02:10]}  Qxe7 {[%clk 0:01:33]} 26. Qe2 {[%clk 0:02:05]}  Ne4 {[%clk 0:01:30]} 27. Bxe4 {[%clk 0:01:53]}  dxe4 {[%clk 0:01:31]} 28. Be3 {[%clk 0:01:51]}  Qe6 {[%clk 0:01:25]} 29. Kg2 {[%clk 0:01:46]}  f5 {[%clk 0:01:20]} 30. Qd1 {[%clk 0:01:38]}  Kh7 {[%clk 0:01:08]} 31. b3 {[%clk 0:01:27]}  g5 {[%clk 0:01:01]} 32. f4 {[%clk 0:00:50]}  exf3+ {[%clk 0:00:31]} 33. Qxf3 {[%clk 0:00:49]}  Kg6 {[%clk 0:00:32]} 34. c4 {[%clk 0:00:48]}  h5 {[%clk 0:00:24]} 35. Bf2 {[%clk 0:00:46]}  g4 {[%clk 0:00:22]} 36. hxg4 {[%clk 0:00:46]}  hxg4 {[%clk 0:00:23]} 37. Qd3 {[%clk 0:00:45]}  Bb4 {[%clk 0:00:18]} 38. d5 {[%clk 0:00:44]}  cxd5 {[%clk 0:00:19]} 39. cxd5 {[%clk 0:00:44]}  Qe4+ {[%clk 0:00:16]} 40. Qxe4 {[%clk 0:00:44]}  fxe4 {[%clk 0:00:17]} 41. Bd4 {[%clk 0:00:43]}  Kf5 {[%clk 0:00:12]} 42. Kf2 {[%clk 0:00:41]}  Bd2 {[%clk 0:00:12]} 43. d6 {[%clk 0:00:38]}  Ke6 {[%clk 0:00:10]} 44. Bc5 {[%clk 0:00:36]}  Bg5 {[%clk 0:00:07]} 45. Ke2 {[%clk 0:00:35]}  Kd5 {[%clk 0:00:06]} 46. Bb6 {[%clk 0:00:34]}  Kc6 {[%clk 0:00:07]} 47. Bxa5 {[%clk 0:00:33]}  Kxd6 {[%clk 0:00:06]} 48. Bb6 {[%clk 0:00:33]}  Kc6 {[%clk 0:00:06]} 49. Be3 {[%clk 0:00:33]}  Bf6 {[%clk 0:00:03]} 50. Bf4 {[%clk 0:00:32]}  Bd4 {[%clk 0:00:03]} 51. Be3 {[%clk 0:00:31]}  Be5 {[%clk 0:00:03]} 52. Kd2 {[%clk 0:00:31]} 1-0


[Site "https://www.chess.com"]

[Event "Titled Tuesday Blitz November 08 Late 2022"]
[White "Rose, Felix"]
[Black "Aqib Javaid Butt"]
[WhiteFideId "5105722"]
[BlackFideId "7801262"]
[WhiteElo "2039"]
[BlackElo "1659"]
[Result "1-0"]
[Round "10"]
[TimeControl "180+1"]
[Date "2022.11.09"]
[WhiteClock "0:00:25"]
[BlackClock "0:00:58"]

1. d4 {[%clk 0:03:00]}  d5 {[%clk 0:03:00]} 2. Nc3 {[%clk 0:03:00]}  c6 {[%clk 0:03:01]} 3. Bf4 {[%clk 0:02:58]}  Nf6 {[%clk 0:03:01]} 4. e3 {[%clk 0:02:57]}  Bf5 {[%clk 0:03:02]} 5. f3 {[%clk 0:02:57]}  Bg6 {[%clk 0:03:00]} 6. Bd3 {[%clk 0:02:57]}  Bxd3 {[%clk 0:02:58]} 7. Qxd3 {[%clk 0:02:57]}  e6 {[%clk 0:02:59]} 8. O-O-O {[%clk 0:02:57]}  Bd6 {[%clk 0:02:59]} 9. Nge2 {[%clk 0:02:57]}  Qc7 {[%clk 0:02:56]} 10. g4 {[%clk 0:02:57]}  Nbd7 {[%clk 0:02:53]} 11. h4 {[%clk 0:02:57]}  e5 {[%clk 0:02:52]} 12. Bg5 {[%clk 0:02:41]}  h6 {[%clk 0:02:43]} 13. Bxf6 {[%clk 0:02:39]}  gxf6 {[%clk 0:02:36]} 14. Qf5 {[%clk 0:02:23]}  Ke7 {[%clk 0:02:31]} 15. Qh5 {[%clk 0:02:15]}  a5 {[%clk 0:02:27]} 16. Ng3 {[%clk 0:02:14]}  b5 {[%clk 0:01:56]} 17. Nf5+ {[%clk 0:02:13]}  Kf8 {[%clk 0:01:57]} 18. Nxh6 {[%clk 0:02:01]}  Nb6 {[%clk 0:01:53]} 19. g5 {[%clk 0:01:54]}  b4 {[%clk 0:01:50]} 20. Ne2 {[%clk 0:01:52]}  a4 {[%clk 0:01:48]} 21. gxf6 {[%clk 0:01:26]}  b3 {[%clk 0:01:47]} 22. Qg5 {[%clk 0:01:25]}  Ke8 {[%clk 0:01:15]} 23. cxb3 {[%clk 0:01:07]}  axb3 {[%clk 0:01:14]} 24. axb3 {[%clk 0:00:59]}  c5 {[%clk 0:01:14]} 25. dxe5 {[%clk 0:00:57]}  Bxe5 {[%clk 0:01:10]} 26. Kb1 {[%clk 0:00:26]}  Qa7 {[%clk 0:00:58]} 27. Qxe5+ {[%clk 0:00:25]} 1-0


[Site "https://www.chess.com"]

[Event "Titled Tuesday Blitz November 08 Late 2022"]
[White "Silvestre, Christian"]
[Black "Desideri, Ricardo Maruchi"]
[WhiteFideId "30956269"]
[BlackFideId "2110440"]
[WhiteElo "2308"]
[BlackElo "1945"]
[Result "1-0"]
[Round "10"]
[TimeControl "180+1"]
[Date "2022.11.09"]
[WhiteClock "0:00:48"]
[BlackClock "0:00:01"]

1. e4 {[%clk 0:03:00]}  c5 {[%clk 0:02:57]} 2. Nc3 {[%clk 0:02:49]}  d6 {[%clk 0:02:55]} 3. f4 {[%clk 0:02:49]}  g6 {[%clk 0:02:53]} 4. Nf3 {[%clk 0:02:47]}  Bg7 {[%clk 0:02:54]} 5. Bc4 {[%clk 0:02:47]}  e6 {[%clk 0:02:54]} 6. d3 {[%clk 0:02:47]}  a6 {[%clk 0:02:54]} 7. O-O {[%clk 0:02:46]}  b5 {[%clk 0:02:54]} 8. Bb3 {[%clk 0:02:47]}  Ne7 {[%clk 0:02:51]} 9. f5 {[%clk 0:02:45]}  exf5 {[%clk 0:02:47]} 10. Ng5 {[%clk 0:02:44]}  O-O {[%clk 0:02:42]} 11. Qe1 {[%clk 0:02:43]}  h6 {[%clk 0:02:32]} 12. Nf3 {[%clk 0:02:29]}  Nbc6 {[%clk 0:02:18]} 13. Qh4 {[%clk 0:02:27]}  Ne5 {[%clk 0:01:42]} 14. Bxh6 {[%clk 0:02:24]}  c4 {[%clk 0:01:20]} 15. Nxe5 {[%clk 0:02:21]}  cxb3 {[%clk 0:01:06]} 16. Nf3 {[%clk 0:02:04]}  bxc2 {[%clk 0:01:00]} 17. Ng5 {[%clk 0:02:04]}  Qb6+ {[%clk 0:00:31]} 18. Kh1 {[%clk 0:02:01]}  Bb7 {[%clk 0:00:23]} 19. exf5 {[%clk 0:01:48]}  Nxf5 {[%clk 0:00:23]} 20. Rxf5 {[%clk 0:01:45]}  gxf5 {[%clk 0:00:18]} 21. Bxg7 {[%clk 0:01:36]}  Kxg7 {[%clk 0:00:17]} 22. Qh7+ {[%clk 0:01:33]}  Kf6 {[%clk 0:00:17]} 23. Qh6+ {[%clk 0:01:30]}  Ke7 {[%clk 0:00:16]} 24. Re1+ {[%clk 0:01:30]}  Kd7 {[%clk 0:00:16]} 25. Qf6 {[%clk 0:01:27]}  Rae8 {[%clk 0:00:14]} 26. Rg1 {[%clk 0:01:22]}  Re2 {[%clk 0:00:12]} 27. Nxe2 {[%clk 0:01:21]}  Qf2 {[%clk 0:00:10]} 28. Ne4 {[%clk 0:00:56]}  Qxe2 {[%clk 0:00:09]} 29. Qxf5+ {[%clk 0:00:55]}  Kc7 {[%clk 0:00:07]} 30. Qf4 {[%clk 0:00:54]}  Bxe4 {[%clk 0:00:07]} 31. dxe4 {[%clk 0:00:55]}  Qd1 {[%clk 0:00:05]} 32. Qc1 {[%clk 0:00:54]}  Qxc1 {[%clk 0:00:04]} 33. Rxc1 {[%clk 0:00:53]}  Kb6 {[%clk 0:00:02]} 34. Rxc2 {[%clk 0:00:52]}  Re8 {[%clk 0:00:02]} 35. Rd2 {[%clk 0:00:47]}  Rxe4 {[%clk 0:00:03]} 36. Rxd6+ {[%clk 0:00:47]}  Kc5 {[%clk 0:00:03]} 37. Rd1 {[%clk 0:00:48]}  Re2 {[%clk 0:00:02]} 38. Rb1 {[%clk 0:00:47]}  Rc2 {[%clk 0:00:02]} 39. h4 {[%clk 0:00:47]}  a5 {[%clk 0:00:02]} 40. Kh2 {[%clk 0:00:48]}  a4 {[%clk 0:00:01]} 41. Kg3 {[%clk 0:00:47]}  b4 {[%clk 0:00:01]} 42. h5 {[%clk 0:00:48]} 1-0


[Site "https://www.chess.com"]

[Event "Titled Tuesday Blitz November 08 Late 2022"]
[White "Svane, Rasmus"]
[Black "Bluebaum, Matthias"]
[WhiteFideId "4657101"]
[BlackFideId "24651516"]
[WhiteElo "2674"]
[BlackElo "2633"]
[Result "1/2-1/2"]
[Round "10"]
[TimeControl "180+1"]
[Date "2022.11.08"]
[WhiteClock "0:00:14"]
[BlackClock "0:00:04"]

1. Nf3 {[%clk 0:03:00]}  d5 {[%clk 0:03:00]} 2. g3 {[%clk 0:03:01]}  Nf6 {[%clk 0:02:57]} 3. Bg2 {[%clk 0:03:02]}  c5 {[%clk 0:02:57]} 4. O-O {[%clk 0:02:59]}  g6 {[%clk 0:02:58]} 5. c4 {[%clk 0:03:00]}  Bg7 {[%clk 0:02:54]} 6. cxd5 {[%clk 0:02:59]}  Nxd5 {[%clk 0:02:54]} 7. Nc3 {[%clk 0:03:00]}  O-O {[%clk 0:02:52]} 8. Nxd5 {[%clk 0:03:00]}  Qxd5 {[%clk 0:02:53]} 9. d3 {[%clk 0:03:01]}  Nc6 {[%clk 0:02:48]} 10. Be3 {[%clk 0:03:01]}  Qd6 {[%clk 0:02:35]} 11. Nd2 {[%clk 0:02:54]}  b6 {[%clk 0:02:31]} 12. Rb1 {[%clk 0:02:23]}  Bb7 {[%clk 0:02:30]} 13. a3 {[%clk 0:02:24]}  Qd7 {[%clk 0:02:27]} 14. b4 {[%clk 0:02:24]}  cxb4 {[%clk 0:02:24]} 15. axb4 {[%clk 0:02:25]}  Nd4 {[%clk 0:02:25]} 16. Bxb7 {[%clk 0:02:16]}  Qxb7 {[%clk 0:02:26]} 17. Bxd4 {[%clk 0:02:17]}  Bxd4 {[%clk 0:02:26]} 18. Nf3 {[%clk 0:02:17]}  Bg7 {[%clk 0:02:26]} 19. b5 {[%clk 0:02:17]}  a5 {[%clk 0:02:14]} 20. bxa6 {[%clk 0:02:17]}  Qxa6 {[%clk 0:02:14]} 21. Qb3 {[%clk 0:02:15]}  Rfb8 {[%clk 0:02:00]} 22. Rfc1 {[%clk 0:01:59]}  b5 {[%clk 0:01:56]} 23. Rc7 {[%clk 0:01:56]}  Qd6 {[%clk 0:01:48]} 24. Rbc1 {[%clk 0:01:43]}  Ra1 {[%clk 0:01:43]} 25. Rxa1 {[%clk 0:01:37]}  Qxc7 {[%clk 0:01:43]} 26. Rb1 {[%clk 0:01:35]}  b4 {[%clk 0:01:40]} 27. Ng5 {[%clk 0:01:18]}  e6 {[%clk 0:01:37]} 28. h4 {[%clk 0:01:19]}  Qc6 {[%clk 0:01:28]} 29. Ne4 {[%clk 0:01:13]}  h6 {[%clk 0:01:24]} 30. Nd2 {[%clk 0:01:02]}  Bd4 {[%clk 0:01:02]} 31. Qc4 {[%clk 0:00:56]}  Qxc4 {[%clk 0:00:53]} 32. dxc4 {[%clk 0:00:53]}  Rc8 {[%clk 0:00:46]} 33. Nb3 {[%clk 0:00:33]}  Rxc4 {[%clk 0:00:41]} 34. Na5 {[%clk 0:00:31]}  Rc5 {[%clk 0:00:21]} 35. Rxb4 {[%clk 0:00:26]}  Bxf2+ {[%clk 0:00:21]} 36. Kxf2 {[%clk 0:00:27]}  Rxa5 {[%clk 0:00:21]} 37. Rb2 {[%clk 0:00:25]}  Kg7 {[%clk 0:00:22]} 38. Kf3 {[%clk 0:00:24]}  Ra4 {[%clk 0:00:22]} 39. Rb3 {[%clk 0:00:23]}  g5 {[%clk 0:00:21]} 40. hxg5 {[%clk 0:00:23]}  hxg5 {[%clk 0:00:22]} 41. Rb5 {[%clk 0:00:19]}  f5 {[%clk 0:00:20]} 42. Kf2 {[%clk 0:00:15]}  Kf6 {[%clk 0:00:20]} 43. Rb8 {[%clk 0:00:15]}  Ra3 {[%clk 0:00:20]} 44. Rb5 {[%clk 0:00:15]}  g4 {[%clk 0:00:18]} 45. Rc5 {[%clk 0:00:16]}  Ra4 {[%clk 0:00:18]} 46. Rb5 {[%clk 0:00:16]}  Re4 {[%clk 0:00:18]} 47. Rc5 {[%clk 0:00:16]}  Re5 {[%clk 0:00:18]} 48. Rc8 {[%clk 0:00:17]}  Ra5 {[%clk 0:00:19]} 49. Rc3 {[%clk 0:00:16]}  e5 {[%clk 0:00:14]} 50. Rc6+ {[%clk 0:00:16]}  Kg5 {[%clk 0:00:15]} 51. Rc8 {[%clk 0:00:16]}  f4 {[%clk 0:00:15]} 52. Rg8+ {[%clk 0:00:13]}  Kf5 {[%clk 0:00:13]} 53. Rf8+ {[%clk 0:00:13]}  Ke4 {[%clk 0:00:12]} 54. Rg8 {[%clk 0:00:14]}  Ra3 {[%clk 0:00:07]} 55. Rxg4 {[%clk 0:00:11]}  Rxg3 {[%clk 0:00:06]} 56. Rxg3 {[%clk 0:00:12]}  fxg3+ {[%clk 0:00:07]} 57. Kxg3 {[%clk 0:00:13]}  Ke3 {[%clk 0:00:08]} 58. Kg4 {[%clk 0:00:13]}  Kxe2 {[%clk 0:00:04]} 59. Kf5 {[%clk 0:00:14]}  e4 {[%clk 0:00:04]} 60. Kxe4 {[%clk 0:00:14]} 1/2-1/2


[Site "https://www.chess.com"]

[Event "Titled Tuesday Blitz November 08 Late 2022"]
[White "Urazayev, Arystanbek"]
[Black "Barria Zuniga, Daniel"]
[WhiteFideId "13709810"]
[BlackFideId "3400816"]
[WhiteElo "2441"]
[BlackElo "2414"]
[Result "1-0"]
[Round "10"]
[TimeControl "180+1"]
[Date "2022.11.08"]
[WhiteClock "0:00:57"]
[BlackClock "0:00:03"]

1. e4 {[%clk 0:03:00]}  c5 {[%clk 0:02:59]} 2. Nf3 {[%clk 0:03:01]}  e6 {[%clk 0:02:57]} 3. d4 {[%clk 0:03:01]}  cxd4 {[%clk 0:02:58]} 4. Nxd4 {[%clk 0:03:02]}  Nc6 {[%clk 0:02:58]} 5. Nc3 {[%clk 0:03:01]}  Qc7 {[%clk 0:02:57]} 6. Ndb5 {[%clk 0:03:01]}  Qb8 {[%clk 0:02:56]} 7. f4 {[%clk 0:02:59]}  a6 {[%clk 0:02:53]} 8. Nd4 {[%clk 0:02:59]}  Qc7 {[%clk 0:02:48]} 9. Be3 {[%clk 0:02:58]}  b5 {[%clk 0:02:48]} 10. Nxc6 {[%clk 0:02:58]}  Qxc6 {[%clk 0:02:46]} 11. Qd4 {[%clk 0:02:58]}  Bb7 {[%clk 0:02:42]} 12. Bd3 {[%clk 0:02:57]}  Rc8 {[%clk 0:02:39]} 13. a3 {[%clk 0:02:45]}  Nf6 {[%clk 0:02:39]} 14. O-O-O {[%clk 0:02:31]}  Bc5 {[%clk 0:02:32]} 15. Qxc5 {[%clk 0:02:30]}  Qxc5 {[%clk 0:02:33]} 16. Bxc5 {[%clk 0:02:31]}  Rxc5 {[%clk 0:02:33]} 17. e5 {[%clk 0:02:26]}  Ng4 {[%clk 0:02:24]} 18. Rde1 {[%clk 0:02:15]}  Nf2 {[%clk 0:02:06]} 19. Rhf1 {[%clk 0:02:14]}  Nxd3+ {[%clk 0:02:04]} 20. cxd3 {[%clk 0:02:15]}  Ke7 {[%clk 0:02:02]} 21. g3 {[%clk 0:02:15]}  f6 {[%clk 0:01:58]} 22. exf6+ {[%clk 0:02:09]}  gxf6 {[%clk 0:01:59]} 23. Kd2 {[%clk 0:02:09]}  h5 {[%clk 0:01:57]} 24. f5 {[%clk 0:02:06]}  Rg8 {[%clk 0:01:46]} 25. Rf4 {[%clk 0:02:03]}  Rg4 {[%clk 0:01:41]} 26. fxe6 {[%clk 0:01:49]}  dxe6 {[%clk 0:01:34]} 27. Ne2 {[%clk 0:01:47]}  e5 {[%clk 0:01:26]} 28. Rf2 {[%clk 0:01:39]}  h4 {[%clk 0:01:24]} 29. gxh4 {[%clk 0:01:38]}  Rxh4 {[%clk 0:01:23]} 30. Ng3 {[%clk 0:01:39]}  Ke6 {[%clk 0:01:19]} 31. Ref1 {[%clk 0:01:39]}  Rh6 {[%clk 0:01:13]} 32. Nf5 {[%clk 0:01:36]}  Rh7 {[%clk 0:01:11]} 33. Ne3 {[%clk 0:01:35]}  Rf7 {[%clk 0:00:59]} 34. h4 {[%clk 0:01:35]}  Rc8 {[%clk 0:00:51]} 35. Nf5 {[%clk 0:01:25]}  Rh8 {[%clk 0:00:41]} 36. Rg1 {[%clk 0:01:23]}  Rhh7 {[%clk 0:00:35]} 37. h5 {[%clk 0:01:19]}  Bc8 {[%clk 0:00:30]} 38. h6 {[%clk 0:01:16]}  Kd5 {[%clk 0:00:28]} 39. Ne3+ {[%clk 0:01:16]}  Kd6 {[%clk 0:00:27]} 40. Rg6 {[%clk 0:01:16]}  Ke6 {[%clk 0:00:11]} 41. Ng4 {[%clk 0:01:15]}  Ke7 {[%clk 0:00:09]} 42. Nxf6 {[%clk 0:01:14]}  Be6 {[%clk 0:00:06]} 43. Ke3 {[%clk 0:01:09]}  Rh8 {[%clk 0:00:06]} 44. h7 {[%clk 0:01:05]}  Rhf8 {[%clk 0:00:04]} 45. Rg8 {[%clk 0:00:59]}  Rxf6 {[%clk 0:00:04]} 46. Rxf6 {[%clk 0:01:00]}  Bxg8 {[%clk 0:00:04]} 47. Rxf8 {[%clk 0:00:59]}  Bxh7 {[%clk 0:00:03]} 48. Ra8 {[%clk 0:00:57]} 1-0


[Site "https://www.chess.com"]

[Event "Titled Tuesday Blitz November 08 Late 2022"]
[White "Wartiovaara, Oliver"]
[Black "Sibilio, Mario"]
[WhiteFideId "513024"]
[BlackFideId "800422"]
[WhiteElo "2213"]
[BlackElo "2251"]
[Result "0-1"]
[Round "10"]
[TimeControl "180+1"]
[Date "2022.11.09"]
[WhiteClock "0:02:10"]
[BlackClock "0:02:34"]

1. d4 {[%clk 0:03:00]}  Nf6 {[%clk 0:02:58]} 2. c4 {[%clk 0:02:59]}  e6 {[%clk 0:02:57]} 3. g3 {[%clk 0:02:58]}  c5 {[%clk 0:02:54]} 4. d5 {[%clk 0:02:56]}  exd5 {[%clk 0:02:53]} 5. cxd5 {[%clk 0:02:57]}  d6 {[%clk 0:02:53]} 6. Nc3 {[%clk 0:02:57]}  g6 {[%clk 0:02:53]} 7. Bg2 {[%clk 0:02:56]}  Bg7 {[%clk 0:02:53]} 8. Nf3 {[%clk 0:02:47]}  O-O {[%clk 0:02:53]} 9. O-O {[%clk 0:02:47]}  Re8 {[%clk 0:02:53]} 10. Re1 {[%clk 0:02:44]}  a6 {[%clk 0:02:50]} 11. a4 {[%clk 0:02:42]}  Ne4 {[%clk 0:02:44]} 12. Nxe4 {[%clk 0:02:39]}  Rxe4 {[%clk 0:02:43]} 13. Nd2 {[%clk 0:02:35]}  Rb4 {[%clk 0:02:39]} 14. Qc2 {[%clk 0:02:29]}  Nd7 {[%clk 0:02:35]} 15. Nc4 {[%clk 0:02:10]}  Ne5 {[%clk 0:02:34]} 0-1


[Site "https://www.chess.com"]

[Event "Titled Tuesday Blitz November 08 Late 2022"]
[White "Yanayt, Eugene"]
[Black "Steen, Bobby"]
[WhiteFideId "2020165"]
[BlackFideId "2053870"]
[WhiteElo "2046"]
[BlackElo "2132"]
[Result "1-0"]
[Round "10"]
[TimeControl "180+1"]
[Date "2022.11.09"]
[WhiteClock "0:00:22"]
[BlackClock "0:01:19"]

1. c4 {[%clk 0:03:00]}  e5 {[%clk 0:02:58]} 2. Nc3 {[%clk 0:02:50]}  Nf6 {[%clk 0:02:58]} 3. g3 {[%clk 0:02:48]}  Nc6 {[%clk 0:02:58]} 4. Bg2 {[%clk 0:02:47]}  a6 {[%clk 0:02:59]} 5. Nf3 {[%clk 0:02:44]}  Bc5 {[%clk 0:02:58]} 6. O-O {[%clk 0:02:42]}  d6 {[%clk 0:02:59]} 7. Rb1 {[%clk 0:02:42]}  Bf5 {[%clk 0:02:58]} 8. d3 {[%clk 0:02:41]}  e4 {[%clk 0:02:55]} 9. Ne1 {[%clk 0:02:35]}  exd3 {[%clk 0:02:54]} 10. exd3 {[%clk 0:02:34]}  O-O {[%clk 0:02:47]} 11. Nc2 {[%clk 0:02:09]}  Re8 {[%clk 0:02:37]} 12. Ne3 {[%clk 0:02:07]}  Bg6 {[%clk 0:02:34]} 13. Ncd5 {[%clk 0:02:01]}  Nxd5 {[%clk 0:02:33]} 14. Nxd5 {[%clk 0:01:58]}  Nd4 {[%clk 0:02:34]} 15. Be3 {[%clk 0:01:54]}  c6 {[%clk 0:02:33]} 16. Nf4 {[%clk 0:01:52]}  Bf5 {[%clk 0:02:25]} 17. b4 {[%clk 0:01:49]}  Ba7 {[%clk 0:02:24]} 18. a4 {[%clk 0:01:49]}  a5 {[%clk 0:02:23]} 19. b5 {[%clk 0:01:47]}  Bc5 {[%clk 0:02:19]} 20. bxc6 {[%clk 0:01:45]}  bxc6 {[%clk 0:02:20]} 21. Rb7 {[%clk 0:01:44]}  Rc8 {[%clk 0:02:14]} 22. Qa1 {[%clk 0:01:23]}  Nc2 {[%clk 0:02:10]} 23. Qc3 {[%clk 0:01:14]}  Nxe3 {[%clk 0:02:04]} 24. fxe3 {[%clk 0:01:04]}  Bxe3+ {[%clk 0:01:59]} 25. Kh1 {[%clk 0:01:04]}  Bxf4 {[%clk 0:01:59]} 26. Rxf4 {[%clk 0:01:02]}  Bg6 {[%clk 0:01:52]} 27. h4 {[%clk 0:01:01]}  h5 {[%clk 0:01:49]} 28. Be4 {[%clk 0:00:52]}  Bxe4+ {[%clk 0:01:41]} 29. dxe4 {[%clk 0:00:47]}  f6 {[%clk 0:01:39]} 30. Qf3 {[%clk 0:00:38]}  Re5 {[%clk 0:01:38]} 31. g4 {[%clk 0:00:31]}  f5 {[%clk 0:01:34]} 32. gxf5 {[%clk 0:00:28]}  Qe8 {[%clk 0:01:27]} 33. f6 {[%clk 0:00:24]}  g6 {[%clk 0:01:19]} 34. f7+ {[%clk 0:00:22]} 1-0


[Site "https://www.chess.com"]

[Event "Titled Tuesday Blitz November 08 Late 2022"]
[White "Zhu, Jiner"]
[Black "Prem, Pranav"]
[WhiteFideId "8608059"]
[BlackFideId "30901057"]
[WhiteElo "2384"]
[BlackElo "1970"]
[Result "1/2-1/2"]
[Round "10"]
[TimeControl "180+1"]
[Date "2022.11.09"]
[WhiteClock "0:00:03"]
[BlackClock "0:00:15"]

1. c4 {[%clk 0:03:00]}  e6 {[%clk 0:02:58]} 2. Nc3 {[%clk 0:02:59]}  d5 {[%clk 0:02:58]} 3. cxd5 {[%clk 0:02:58]}  exd5 {[%clk 0:02:58]} 4. d4 {[%clk 0:02:59]}  c6 {[%clk 0:02:57]} 5. Nf3 {[%clk 0:02:50]}  Nf6 {[%clk 0:02:50]} 6. Bg5 {[%clk 0:02:49]}  Bf5 {[%clk 0:02:46]} 7. e3 {[%clk 0:02:47]}  Be7 {[%clk 0:02:44]} 8. Be2 {[%clk 0:02:47]}  h6 {[%clk 0:02:39]} 9. Bh4 {[%clk 0:02:45]}  Nbd7 {[%clk 0:02:39]} 10. O-O {[%clk 0:02:44]}  O-O {[%clk 0:02:38]} 11. a3 {[%clk 0:02:43]}  a5 {[%clk 0:02:35]} 12. Rc1 {[%clk 0:02:32]}  Ne4 {[%clk 0:02:28]} 13. Bxe7 {[%clk 0:02:28]}  Qxe7 {[%clk 0:02:29]} 14. Nxe4 {[%clk 0:02:26]}  Bxe4 {[%clk 0:02:25]} 15. Nd2 {[%clk 0:02:26]}  Bf5 {[%clk 0:02:21]} 16. Qa4 {[%clk 0:02:19]}  Nf6 {[%clk 0:02:15]} 17. Bf3 {[%clk 0:02:18]}  Rfe8 {[%clk 0:02:05]} 18. Rc3 {[%clk 0:02:11]}  Bg4 {[%clk 0:02:02]} 19. Bxg4 {[%clk 0:02:00]}  Nxg4 {[%clk 0:02:03]} 20. g3 {[%clk 0:01:59]}  h5 {[%clk 0:01:58]} 21. h4 {[%clk 0:01:52]}  Nf6 {[%clk 0:01:40]} 22. Qc2 {[%clk 0:01:51]}  Qd7 {[%clk 0:01:31]} 23. Kg2 {[%clk 0:01:50]}  g6 {[%clk 0:01:29]} 24. Re1 {[%clk 0:01:47]}  Ng4 {[%clk 0:01:20]} 25. Qd3 {[%clk 0:01:38]}  Re7 {[%clk 0:01:14]} 26. f3 {[%clk 0:01:34]}  Nh6 {[%clk 0:01:11]} 27. e4 {[%clk 0:01:31]}  dxe4 {[%clk 0:01:06]} 28. fxe4 {[%clk 0:01:32]}  Rd8 {[%clk 0:01:03]} 29. Nf3 {[%clk 0:01:30]}  Ng4 {[%clk 0:01:02]} 30. Rc5 {[%clk 0:01:17]}  b6 {[%clk 0:00:59]} 31. Rcc1 {[%clk 0:01:14]}  c5 {[%clk 0:00:59]} 32. d5 {[%clk 0:01:14]}  Qd6 {[%clk 0:00:57]} 33. Rcd1 {[%clk 0:01:13]}  Rde8 {[%clk 0:00:56]} 34. Re2 {[%clk 0:01:10]}  f6 {[%clk 0:00:55]} 35. Rde1 {[%clk 0:01:09]}  Kg7 {[%clk 0:00:54]} 36. a4 {[%clk 0:01:08]}  Ne5 {[%clk 0:00:49]} 37. Nxe5 {[%clk 0:01:08]}  Rxe5 {[%clk 0:00:50]} 38. Rf1 {[%clk 0:01:06]}  R8e7 {[%clk 0:00:48]} 39. Rf4 {[%clk 0:00:46]}  f5 {[%clk 0:00:37]} 40. Qc3 {[%clk 0:00:43]}  Kg8 {[%clk 0:00:31]} 41. Qc4 {[%clk 0:00:33]}  Kg7 {[%clk 0:00:21]} 42. b3 {[%clk 0:00:33]}  Re8 {[%clk 0:00:19]} 43. Qc3 {[%clk 0:00:23]}  Kg8 {[%clk 0:00:19]} 44. Qc4 {[%clk 0:00:22]}  Kg7 {[%clk 0:00:19]} 45. Qc3 {[%clk 0:00:17]}  Kg8 {[%clk 0:00:19]} 46. Qf3 {[%clk 0:00:09]}  Kg7 {[%clk 0:00:17]} 47. Kh2 {[%clk 0:00:05]}  R8e7 {[%clk 0:00:17]} 48. Qc3 {[%clk 0:00:05]}  Kg8 {[%clk 0:00:16]} 49. Qc4 {[%clk 0:00:06]}  Kg7 {[%clk 0:00:16]} 50. Qd3 {[%clk 0:00:06]}  Re8 {[%clk 0:00:15]} 51. Qc3 {[%clk 0:00:05]}  Kg8 {[%clk 0:00:15]} 52. Qd3 {[%clk 0:00:04]}  Kg7 {[%clk 0:00:15]} 53. Qc3 {[%clk 0:00:04]}  Kg8 {[%clk 0:00:15]} 54. Qd3 {[%clk 0:00:03]}  Kg7 {[%clk 0:00:15]} 1/2-1/2


[Site "https://www.chess.com"]